[Event "31st MPL National U18G Chess-ch 2022"]
[Site "Pollachi"]
[Date "2022.04.20"]
[Round "5.7"]
[White "Sachi Jain"]
[Black "Jayashri M"]
[Result "1-0"]
[ECO "B18"]
[WhiteElo "1401"]
[BlackElo "1165"]
[Annotator "NA RC COMBH"]
[PlyCount "135"]
[EventDate "2022.04.18"]
[EventCountry "IND"]
[SourceTitle "playchess.com"]
[Source "ChessBase"]
[SourceQuality "1"]
[TimeControl "5400+30"]

1. e4 {[%emt 0:00:24]} c6 {[%emt 0:00:30]} 2. d4 {[%emt 0:00:15]} d5 {[%emt 0:00:06]} 3. Nc3 {[%emt 0:00:21]} dxe4 {[%emt 0:00:26]} 4. Nxe4 {[%emt 0:00:10]} Bf5 {[%emt 0:00:17]} 5. Ng3 {[%emt 0:00:20]} Bg6 {[%emt 0:00:09]} 6. Bc4 {[%emt 0:00:20]} e6 {[%emt 0:00:48]} 7. N1e2 {[%emt 0:00:10]} Bd6 {[%emt 0:01:32]} 8. O-O {[%emt 0:00:23]} Qc7 {[%emt 0:00:44]} 9. c3 {[%emt 0:03:08]} Nf6 {[%emt 0:00:20]} 10. f4 {[%emt 0:02:11]} O-O {[%emt 0:06:54]} 11. Qe1 {[%emt 0:00:32]} Nbd7 {[%emt 0:00:31]} 12. Kh1 {[%emt 0:01:08]} b5 {[%emt 0:04:15]} 13. Bb3 {[%emt 0:00:41]} Rfe8 {[%emt 0:07:14]} 14. Bd2 {[%emt 0:04:13]} c5 {[%emt 0:00:27]} 15. Rc1 {[%emt 0:01:46]} c4 {[%emt 0:00:12]} 16. Bc2 {[%emt 0:00:02]} Bd3 {[%emt 0:05:24]} 17. Bxd3 {[%emt 0:07:32]} cxd3 {[%emt 0:00:08]} 18. Ng1 {[%emt 0:00:04]} Nd5 {[%emt 0:01:35]} 19. Qe4 {[%emt 0:10:44]} N7f6 {[%emt 0:09:16]} 20. Qxd3 {[%emt 0:00:03]} Nxf4 {[%emt 0:00:16]} 21. Qf3 {[%emt 0:00:05]} Ng6 {[%emt 0:06:43]} 22. N1e2 {[%emt 0:02:34]} e5 {[%emt 0:04:01]} 23. Bg5 {[%emt 0:03:24]} e4 {[%emt 0:02:50]} 24. Qf5 {[%emt 0:00:54]} Bxg3 {[%emt 0:08:26]} 25. Nxg3 {[%emt 0:00:59]} Qd7 {[%emt 0:02:41]} 26. Bxf6 {[%emt 0:02:13]} Qxf5 {[%emt 0:37:45]} 27. Rxf5 {[%emt 0:02:46]} gxf6 {[%emt 0:00:00]} 28. Rxf6 {[%emt 0:00:07]} Kg7 {[%emt 0:00:00]} 29. Rf5 {[%emt 0:00:09]} Re6 {[%emt 0:00:00]} 30. Rxb5 {[%emt 0:01:47]} Nf4 {[%emt 0:00:00]} 31. Nh5+ {[%emt 0:03:26]} Nxh5 {[%emt 0:00:00]} 32. Rxh5 {[%emt 0:00:04]} e3 {[%emt 0:00:00]} 33. Re1 {[%emt 0:02:17]} Rae8 {[%emt 0:00:00]} 34. Re5 {[%emt 0:01:49]} Rxe5 {[%emt 0:00:00]} 35. dxe5 {[%emt 0:00:00]} Rxe5 {[%emt 0:00:00]} 36. Re2 {[%emt 0:00:02]} Rd5 {[%emt 0:00:00]} 37. h3 {[%emt 0:02:01]} Rd2 {[%emt 0:00:00]} 38. Rxe3 {[%emt 0:00:01]} Rxb2 {[%emt 0:00:00]} 39. a4 {[%emt 0:00:27]} Ra2 {[%emt 0:00:00]} 40. Re4 {[%emt 0:00:26]} Ra3 {[%emt 0:00:00]} 41. Rc4 {[%emt 0:00:42]} h5 {[%emt 0:00:00]} 42. Kg1 {[%emt 0:00:12]} Kg6 {[%emt 0:00:00]} 43. Kf2 {[%emt 0:00:32]} f5 {[%emt 0:00:00]} 44. g3 {[%emt 0:00:26]} Kf6 {[%emt 0:00:00]} 45. Ke3 {[%emt 0:00:53]} Ra1 {[%emt 0:00:00]} 46. Rc6+ {[%emt 0:01:27]} Kg5 {[%emt 0:00:00]} 47. Ra6 {[%emt 0:00:29]} Rh1 {[%emt 0:00:00]} 48. Rxa7 {[%emt 0:01:16]} Rxh3 {[%emt 0:00:00]} 49. Kf3 {[%emt 0:01:02]} h4 {[%emt 0:00:00]} 50. Rg7+ {[%emt 0:00:33]} Kf6 {[%emt 0:00:00]} 51. Kg2 {[%emt 0:01:12]} Rxg3+ {[%emt 0:00:00]} 52. Rxg3 {[%emt 0:00:01]} hxg3 {[%emt 0:00:00]} 53. Kxg3 {[%emt 0:00:03]} Ke6 {[%emt 0:00:00]} 54. Kf4 {[%emt 0:00:04]} Kd6 {[%emt 0:00:00]} 55. c4 {[%emt 0:00:05]} Kc6 {[%emt 0:00:00]} 56. Kxf5 {[%emt 0:00:08]} Kb6 {[%emt 0:00:00]} 57. Ke5 {[%emt 0:00:03]} Kc5 {[%emt 0:00:00]} 58. a5 {[%emt 0:00:03]} Kc6 {[%emt 0:00:00]} 59. Kd4 {[%emt 0:00:04]} Kb7 {[%emt 0:00:00]} 60. Kc5 {[%emt 0:00:04]} Ka6 {[%emt 0:00:00]} 61. Kd6 {[%emt 0:00:08]} Ka7 {[%emt 0:00:00]} 62. c5 {[%emt 0:00:03]} Kb7 {[%emt 0:00:00]} 63. c6+ {[%emt 0:00:03]} Kc8 {[%emt 0:00:00]} 64. c7 {[%emt 0:00:03]} Kb7 {[%emt 0:00:00]} 65. Kd7 {[%emt 0:00:07]} Ka7 {[%emt 0:00:00]} 66. Kc6 {[%emt 0:00:09]} Ka6 {[%emt 0:00:00]} 67. c8=Q+ {[%emt 0:00:05]} Ka7 {[%emt 0:00:00]} 68. Qb7# {[%emt 0:00:04]} 1-0

[Event "31st MPL National U18G Chess-ch 2022"]
[Site "Pollachi"]
[Date "2022.04.20"]
[Round "6.1"]
[White "Bhagyashree Patil"]
[Black "Keerti Shree Reddy"]
[Result "1-0"]
[ECO "B34"]
[WhiteElo "1974"]
[BlackElo "1721"]
[Annotator "TA"]
[PlyCount "127"]
[EventDate "2022.04.18"]
[EventCountry "IND"]
[SourceTitle "playchess.com"]
[Source "ChessBase"]
[SourceQuality "1"]
[TimeControl "5400+30"]

{[%evp 25,127,0,24,16,16,23,83,58,79,67,74,0,0,0,0,0,0,0,0,0,0,0,8,6,62,58,83,69,91,36,94,91,150,151,177,171,183,170,197,228,534,535,491,399,458,114,109,148,129,150,106,-172,0,0,0,-172,-172,-172,-172,-172,-172,-172,-81,-81,-81,-91,-9,-9,0,0,0,0,0,-80,-80,-81,0,0,0,0,299,361,742,592,5944,8314,11929,10473,5614,5226,5707,5314,5514,343,29979,29980,29980,29981,29981,29982,29983,29983,29984,29978]} 1. e4 {[%emt 0:00:04]} c5 {[%emt 0:01:41]} 2. Nf3 {[%emt 0:00:15]} g6 {[%emt 0:00:13]} 3. d4 {[%emt 0:00:04]} cxd4 {[%emt 0:00:05]} 4. Nxd4 {[%emt 0:00:02]} Bg7 {[%emt 0:00:11]} 5. Nc3 {[%emt 0:00:46]} Nc6 {[%emt 0:00:14]} 6. Be3 {[%emt 0:00:20]} Nf6 {[%emt 0:00:09]} 7. Be2 {[%emt 0:00:07]} O-O {[%emt 0:00:16]} 8. O-O {[%emt 0:01:05]} d5 {[%emt 0:00:14]} 9. exd5 {[%emt 0:02:37]} Nxd5 {[%emt 0:00:08]} 10. Nxd5 {[%emt 0:03:22]} Qxd5 {[%emt 0:00:07]} 11. Bf3 {[%emt 0:02:22]} Qa5 {[%emt 0:00:08]} 12. Nxc6 {[%emt 0:02:06]} bxc6 {[%emt 0:00:03]} 13. c3 {[%emt 0:00:03]} Rb8 {[%emt 0:07:21]} (13... Rd8 $5 {[%cal Rd8d1]} 14. b4 Rxd1 15. bxa5 Rxa1 16. Rxa1 Bxc3 $11) 14. Qc1 {[%emt 0:07:41] B34: Sicilian: Accelerated Dragon with 5 Nc3: sidelines.} Qc7 {[%emt 0:06:10]} 15. Rd1 {[%emt 0:08:24] [#]} f5 $146 {[%emt 0:13:20]} (15... Be5 $11) ({Predecessor:} 15... a5 16. b3 h5 17. h3 Be6 18. Bc5 Be5 19. Qe3 Bh2+ 20. Kh1 Bf4 21. Qe2 Rfc8 22. Re1 Rd8 23. Be4 Kg7 24. Rad1 Bd6 25. Rxd6 Rxd6 26. Qe3 {1-0 (27) Lockett,J (1830)-Ovcinkins,A (1574) ICCF email 2020}) 16. Bc5 {[%emt 0:02:19] White is better.} Be6 {[%emt 0:13:21]} 17. Re1 {[%emt 0:04:05]} Be5 {[%emt 0:03:24]} 18. Rxe5 {[%emt 0:10:40]} Qxe5 $11 {[%emt 0:00:51]} 19. Bxa7 {[%emt 0:00:20] This bishop pair is nice.} Ra8 {[%emt 0:10:00]} 20. Bd4 {[%emt 0:00:22]} Qd6 {[%emt 0:02:31]} 21. a4 {[%emt 0:01:58]} (21. Qh6 Rf7 22. a4 Bd5 $15) 21... Bb3 {[%emt 0:07:35]} 22. a5 {[%emt 0:02:29]} (22. Qh6 $2 e5 23. Bb6 e4 $19) 22... e5 {[%emt 0:02:17][%cal Be7e5,Be5e4][%mdl 32]} 23. Bb6 {[%emt 0:00:33]} e4 {[%emt 0:07:05]} 24. Bd1 {[%emt 0:04:05]} Bc4 {[%emt 0:02:21]} (24... Bxd1 $11 25. Qxd1 Qxd1+ 26. Rxd1 Rfe8) 25. b3 {[%emt 0:01:27][%mdl 1024] White has compensation.} Ba6 {[%emt 0:00:14]} 26. b4 {[%emt 0:01:43]} Qe6 {[%emt 0:02:38] Inhibits Bb3.} 27. Rb1 {[%emt 0:07:41]} (27. Qf4 $16) 27... Bc4 {[%emt 0:03:25]} (27... f4 $14) 28. Qf4 $16 {[%emt 0:01:02]} Rab8 {[%emt 0:05:12]} (28... Rf7 $142) 29. h4 {[%emt 0:03:13][%cal Bh2h4,Bh4h5][%mdl 32]} Qd5 {[%emt 0:05:50]} 30. h5 {[%emt 0:02:52]} Rb7 {[%emt 0:03:26][%cal Og6g5]} 31. Qh6 {[%emt 0:09:45]} Qd3 {[%emt 0:02:32]} 32. Rc1 {[%emt 0:05:03]} Rg7 $2 {[%emt 0:00:24]} (32... Qf1+ $2 33. Kh2) (32... f4 {is tougher.}) 33. Bd4 $18 {[%emt 0:00:47][%csl Gd4][%cal Rh6g7]} Rff7 {[%emt 0:01:38]} 34. Ba4 {[%emt 0:04:23]} gxh5 {[%emt 0:01:14]} 35. Rd1 $2 {[%emt 0:00:25]} (35. Bxg7 $18 {is the precise move to win.} Rxg7 36. Qxh5 (36. Qxc6 Rxg2+ 37. Kxg2 Qf3+ 38. Kh2 Qf4+ 39. Kh3 Qf3+ 40. Kh2 Qf4+ 41. Kh3 Qf3+ 42. Kh2 $11)) 35... Rg6 $16 {[%emt 0:00:37]} 36. Qxh5 {[%emt 0:01:03] Really sharp!} Qe2 {[%emt 0:00:24]} 37. Qxe2 {[%emt 0:00:50]} Bxe2 {[%emt 0:00:01]} 38. a6 $2 {[%emt 0:02:16][%mdl 8192]} (38. Rd2 $1 $16 {[%cal Rd2e2] is necessary to keep the advantage.} Bf3 39. Be5) 38... Bxd1 {[%emt 0:00:31]} ({But not} 38... Bxa6 39. Bb3 Bc8 40. Bxf7+ Kxf7 41. Ra1 $14) (38... c5 $1 $19 39. a7 Ra6 40. Bxc5 Bxd1 41. Bxd1 Raxa7) 39. Bxd1 $11 {[%emt 0:00:01] And now a7 would win.} c5 {[%emt 0:00:22]} 40. Bxc5 {[%emt 0:00:06]} (40. b5 $1 $11 {and White is okay.} Rb6 41. Bb3 (41. Bxc5 $2 Rxb5 42. a7 Rxa7 $19) 41... Rxb5 42. Bxf7+ Kxf7 43. a7) 40... Rxa6 $19 {[%emt 0:00:48] ...Ra1 is the strong threat.} 41. Bb3 {[%emt 0:00:01]} Ra3 {[%emt 0:01:04]} 42. Bxf7+ {[%emt 0:00:04]} Kxf7 {[%emt 0:00:01][%mdl 4096] Endgame KR-KB} 43. Bd4 {[%emt 0:00:10]} Ke6 {[%emt 0:00:18]} (43... Ra1+ $19 {has better winning chances.} 44. Kh2 f4) 44. g3 $17 {[%emt 0:01:09]} Rb3 {[%emt 0:00:17]} 45. Kg2 {[%emt 0:00:22]} Kd5 {[%emt 0:00:09]} ({Better is} 45... Rb1 $17 {Hoping for ...Kd5.} 46. Kh3 Rh1+ 47. Kg2 Rc1) 46. Kh3 $1 $11 {[%emt 0:00:17]} Rb2 {[%emt 0:01:04]} 47. Kh4 {[%emt 0:00:15]} Ke6 {[%emt 0:01:15][%cal Of5f4]} 48. Kg5 {[%emt 0:00:12]} Rb1 {[%emt 0:00:14]} 49. Kh6 {[%emt 0:00:19] [#]} (49. Be3 $11) 49... Rh1+ $1 $17 {[%emt 0:00:31]} 50. Kg5 {[%emt 0:00:18] [#]} Rb1 {[%emt 0:00:40]} (50... h6+ $1 $17 51. Kg6 h5) 51. Kh6 $11 {[%emt 0:00:14]} f4 {[%emt 0:00:23]} 52. gxf4 {[%emt 0:00:25]} Kf5 $2 {[%emt 0:00:04][%mdl 8192]} (52... Rh1+ $11 {and Black has nothing to worry.} 53. Kg5 Rg1+ 54. Kh6 Rh1+ 55. Kg5 Rg1+ 56. Kh6 Rh1+) 53. Kxh7 $18 {[%emt 0:01:07]} Kxf4 $2 {[%emt 0:00:25]} (53... Rg1 54. Be3 Kf6) 54. Kg6 {[%emt 0:00:40] Threatens to win with Kf6.} Rb2 {[%emt 0:00:26]} 55. Kf6 {[%emt 0:01:06] Ke6 would kill now.} Rb1 {[%emt 0:00:44]} 56. Ke6 {[%emt 0:00:06] White wants to mate with c4.} Kf3 {[%emt 0:00:28]} 57. Ke5 {[%emt 0:00:41] aiming for c4.} Rb3 {[%emt 0:01:14]} 58. Kd5 {[%emt 0:00:51]} Rb2 {[%emt 0:00:13]} 59. Be3 $2 {[%emt 0:01:06]} (59. c4 Rxb4 60. c5) 59... Rc2 {[%emt 0:00:50]} (59... Rb3 $18 60. c4 Rxe3 61. fxe3 Kxe3) 60. c4 {[%emt 0:00:25][%cal Bc3c4,Bc4c5][%mdl 32] White mates.} Rc3 {[%emt 0:00:27]} 61. b5 {[%emt 0:00:31][%cal Bb4b5,Bb5b6,Bb6b7][%mdl 32]} Ra3 {[%emt 0:00:25]} 62. b6 {[%emt 0:00:17]} Ra8 {[%emt 0:00:22]} 63. b7 {[%emt 0:00:36]} Rh8 {[%emt 0:00:09]} 64. c5 {[%emt 0:00:39] Weighted Error Value: White=0.42/Black=0.56} 1-0

[Event "31st MPL National U18G Chess-ch 2022"]
[Site "Pollachi"]
[Date "2022.04.20"]
[Round "6.2"]
[White "Udagedara, Sandali Kanishka"]
[Black "Sachi Jain"]
[Result "1-0"]
[ECO "A22"]
[WhiteElo "1510"]
[BlackElo "1401"]
[Annotator "NA RC COMBH"]
[PlyCount "127"]
[EventDate "2022.04.18"]
[EventCountry "IND"]
[SourceTitle "playchess.com"]
[Source "ChessBase"]
[SourceQuality "1"]
[TimeControl "5400+30"]

1. c4 {[%emt 0:00:13]} d6 {[%emt 0:00:38]} 2. Nc3 {[%emt 0:00:12]} Nd7 {[%emt 0:00:08]} 3. g3 {[%emt 0:00:28]} e5 {[%emt 0:00:17]} 4. Bg2 {[%emt 0:00:04]} Ngf6 {[%emt 0:00:29]} 5. e4 {[%emt 0:00:46]} a6 {[%emt 0:00:50]} 6. Nge2 {[%emt 0:00:47]} b5 {[%emt 0:03:58]} 7. d3 {[%emt 0:09:28]} c6 {[%emt 0:05:36]} 8. b3 {[%emt 0:01:32]} Be7 {[%emt 0:01:23]} 9. O-O {[%emt 0:00:19]} O-O {[%emt 0:01:01]} 10. h3 {[%emt 0:00:37]} Qb6 {[%emt 0:16:23]} 11. Be3 {[%emt 0:00:56]} c5 {[%emt 0:00:10]} 12. f4 {[%emt 0:02:57]} b4 {[%emt 0:06:44]} 13. Na4 {[%emt 0:01:09]} Qd8 {[%emt 0:01:25]} 14. Qd2 {[%emt 0:02:30]} h6 {[%emt 0:02:25]} 15. g4 {[%emt 0:03:57]} Nh7 {[%emt 0:01:42]} 16. Ng3 {[%emt 0:02:28]} exf4 {[%emt 0:02:33]} 17. Bxf4 {[%emt 0:00:09]} Ne5 {[%emt 0:00:04]} 18. Rad1 {[%emt 0:03:04]} Bf6 {[%emt 0:12:04]} 19. Nh5 {[%emt 0:02:40]} Bg5 {[%emt 0:02:07]} 20. d4 {[%emt 0:06:26]} Bxf4 {[%emt 0:01:16]} 21. Nxf4 {[%emt 0:00:13]} cxd4 {[%emt 0:03:37]} 22. Qxd4 {[%emt 0:00:43]} Bb7 {[%emt 0:03:34]} 23. Qxd6 {[%emt 0:01:50]} Qxd6 {[%emt 0:00:15]} 24. Rxd6 {[%emt 0:00:02]} Nf6 {[%emt 0:00:11]} 25. Nc5 {[%emt 0:01:04]} Bc6 {[%emt 0:04:17]} 26. Ne2 {[%emt 0:00:28]} Rfd8 {[%emt 0:01:14]} 27. Rfd1 {[%emt 0:00:22]} Rxd6 {[%emt 0:00:44]} 28. Rxd6 {[%emt 0:00:01]} Ne8 {[%emt 0:02:17]} 29. Rd2 {[%emt 0:00:56]} a5 {[%emt 0:00:06]} 30. Nd4 {[%emt 0:01:03]} Rd8 {[%emt 0:01:50]} 31. Kf2 {[%emt 0:00:53]} Nf6 {[%emt 0:02:30]} 32. Ke3 {[%emt 0:01:02]} Ba8 {[%emt 0:00:51]} 33. Nf5 {[%emt 0:02:55]} Rxd2 {[%emt 0:02:37]} 34. Kxd2 {[%emt 0:00:02]} Kf8 {[%emt 0:00:02]} 35. Ke3 {[%emt 0:01:13]} h5 {[%emt 0:01:04]} 36. g5 {[%emt 0:02:30]} Ng8 {[%emt 0:00:17]} 37. h4 {[%emt 0:01:39]} Ne7 {[%emt 0:00:12]} 38. Nxe7 {[%emt 0:13:44]} Kxe7 {[%emt 0:00:09]} 39. Kf4 {[%emt 0:00:03]} Ng6+ {[%emt 0:00:21]} 40. Kg3 {[%emt 0:00:13]} Ne5 {[%emt 0:03:57]} 41. Na4 {[%emt 0:07:23]} Nd3 {[%emt 0:01:09]} 42. Bf3 {[%emt 0:00:19]} Nc1 {[%emt 0:01:27]} 43. Kf4 {[%emt 0:00:28]} g6 {[%emt 0:01:45]} 44. Ke3 {[%emt 0:01:10]} Nxa2 {[%emt 0:00:12]} 45. Kd4 {[%emt 0:01:50]} Bc6 {[%emt 0:01:28]} 46. Nb6 {[%emt 0:01:19]} Nc3 {[%emt 0:01:38]} 47. Nd5+ {[%emt 0:00:52]} Nxd5 {[%emt 0:05:09]} 48. exd5 {[%emt 0:00:07]} a4 {[%emt 0:00:57]} 49. bxa4 {[%emt 0:00:42]} Bxa4 {[%emt 0:00:50]} 50. c5 {[%emt 0:00:07]} Bb3 {[%emt 0:00:32]} 51. Be2 {[%emt 0:00:48]} Ba2 {[%emt 0:01:01]} 52. Bb5 {[%emt 0:01:17]} Bb1 {[%emt 0:02:44]} 53. d6+ {[%emt 0:00:14]} Ke6 {[%emt 0:01:03]} 54. Bc4+ {[%emt 0:00:43]} Kd7 {[%emt 0:00:13]} 55. Kd5 {[%emt 0:00:04]} Bf5 {[%emt 0:00:31]} 56. c6+ {[%emt 0:00:12]} Ke8 {[%emt 0:01:36]} 57. Kc5 {[%emt 0:00:52]} Be4 {[%emt 0:00:33]} 58. Bb5 {[%emt 0:00:39]} Kd8 {[%emt 0:00:20]} 59. c7+ {[%emt 0:01:19]} Kc8 {[%emt 0:00:10]} 60. Ba6+ {[%emt 0:00:06]} Bb7 {[%emt 0:00:04]} 61. Bxb7+ {[%emt 0:00:04]} Kxb7 {[%emt 0:00:04]} 62. Kxb4 {[%emt 0:00:04]} Kc8 {[%emt 0:00:07]} 63. Kc5 {[%emt 0:00:03]} Kd7 {[%emt 0:00:06]} 64. Kd5 {[%emt 0:00:04]} 1-0

[Event "31st MPL National U18G Chess-ch 2022"]
[Site "Pollachi"]
[Date "2022.04.20"]
[Round "6.3"]
[White "Rindhiya V"]
[Black "Vakcheri Mohitha"]
[Result "1-0"]
[ECO "C14"]
[WhiteElo "1949"]
[BlackElo "1459"]
[Annotator "TA"]
[PlyCount "115"]
[EventDate "2022.04.18"]
[EventCountry "IND"]
[SourceTitle "playchess.com"]
[Source "ChessBase"]
[SourceQuality "1"]
[TimeControl "5400+30"]

{[%evp 17,115,19,24,25,37,19,36,28,36,39,47,31,21,3,15,0,26,26,45,34,41,0,38,37,58,34,58,58,58,34,133,133,144,134,130,41,41,38,95,39,130,108,115,123,131,122,116,114,114,123,122,119,138,121,154,19,212,199,319,274,368,364,398,358,1182,291,1362,257,1348,1170,1253,161,822,772,1045,684,1260,1225,1887,780,1816,1697,1697,1304,12793,6610,3443,1711,29984,29978,29983,29984,29984,29985,29985,29986,29987,29988,29988,29989]} 1. e4 {[%emt 0:00:02]} e6 {[%emt 0:00:05]} 2. d4 {[%emt 0:00:05]} d5 {[%emt 0:00:05]} 3. Nc3 {[%emt 0:00:03]} Nf6 {[%emt 0:00:09]} 4. Bg5 {[%emt 0:00:05]} Be7 {[%emt 0:00:07]} 5. e5 {[%emt 0:00:04]} Nfd7 {[%emt 0:00:04]} 6. Bxe7 {[%emt 0:00:08]} Qxe7 {[%emt 0:00:07]} 7. f4 {[%emt 0:00:06]} a6 {[%emt 0:01:14]} 8. Nf3 {[%emt 0:00:07]} c5 {[%emt 0:01:33]} 9. dxc5 {[%emt 0:02:14]} Qxc5 {[%emt 0:01:40]} 10. Qd2 {[%emt 0:01:45] C14: French: Classical System: 4 Bg5 Be7 main line.} b5 {[%emt 0:04:49]} 11. Bd3 {[%emt 0:13:48]} Nb6 {[%emt 0:02:44]} 12. Qf2 {[%emt 0:07:52] White is slightly better.} Qxf2+ {[%emt 0:03:03]} 13. Kxf2 {[%emt 0:00:02]} Nc6 {[%emt 1:21:20]} 14. a3 {[%emt 0:04:28]} Bd7 {[%emt 0:00:00] [#]} 15. g4 $146 {[%emt 0:04:52]} ({Predecessor:} 15. Rhe1 Ke7 16. Ne2 Na4 17. b3 Nc5 18. Ned4 h5 19. h4 f5 20. exf6+ gxf6 21. Nxc6+ Bxc6 {½-½ (32) Minyeyevtsev,S (2204)-Hammes,M (2368) Belgium 2012}) 15... Ke7 {[%emt 0:00:00]} 16. h4 {[%emt 0:11:06]} Rac8 {[%emt 0:00:00]} (16... h5 $5 {[%cal Rh5g4]}) 17. Ne2 {[%emt 0:11:16]} Na4 {[%emt 0:00:00]} 18. b3 {[%emt 0:02:29]} Nc5 {[%emt 0:02:30]} 19. Ke3 {[%emt 0:09:49]} Nxd3 {[%emt 0:00:00]} 20. cxd3 {[%emt 0:01:36]} b4 {[%emt 0:00:00]} 21. Ned4 {[%emt 0:03:42]} bxa3 {[%emt 0:00:00]} 22. Nxc6+ $1 {[%emt 0:05:04]} Rxc6 {[%emt 0:00:00]} 23. Rxa3 {[%emt 0:01:29]} Rc3 {[%emt 0:00:00]} (23... h5 $14) 24. Nd4 $16 {[%emt 0:02:04]} Bc8 {[%emt 0:00:00]} 25. Kd2 {[%emt 0:03:41]} Rc7 {[%emt 0:00:00]} 26. Rc1 {[%emt 0:11:20] &Bianco is more active.} (26. h5 $16) 26... Rxc1 $14 {[%emt 0:00:00]} 27. Kxc1 {[%emt 0:00:02][%mdl 4096] Endgame KRB-KRN} Bb7 {[%emt 0:00:00]} ({Better is} 27... h5 $14) 28. Kd2 {[%emt 0:00:37]} (28. h5 $16) 28... f6 {[%emt 0:00:00]} ({Black should play} 28... h5 $14) 29. Ra2 {[%emt 0:02:13]} fxe5 {[%emt 0:00:00]} 30. fxe5 {[%emt 0:00:02]} Rf8 {[%emt 0:00:00]} 31. Ke3 {[%emt 0:00:07] Against Rf2} Rf1 {[%emt 0:00:00]} 32. Rc2 $1 {[%emt 0:00:35] Hoping for Rc7+.} Kd7 {[%emt 0:00:00] [#] Inhibits Rc7+.} 33. Rf2 $1 {[%emt 0:02:39]} Rxf2 {[%emt 0:00:00]} 34. Kxf2 $16 {[%emt 0:00:02] KB-KN} Bc8 {[%emt 0:00:00]} 35. Ke3 {[%emt 0:00:05]} Ke7 {[%emt 0:00:00]} 36. Kd2 {[%emt 0:00:41]} (36. b4 $16) 36... Kd7 $2 {[%emt 0:00:00] [#] A mistake that costs the game.} (36... Bd7 $11 {and Black has nothing to worry.}) 37. Kc3 $1 $18 {[%emt 0:00:33] Strongly threatening Kb4.} Kc7 {[%emt 0:00:00]} (37... a5 $142 38. b4 axb4+ 39. Kxb4 Kc7) 38. Ne2 {[%emt 0:00:54]} Bd7 {[%emt 0:00:00]} 39. Nf4 {[%emt 0:00:08]} g6 {[%emt 0:00:00]} 40. g5 {[%emt 0:01:08]} Kd8 $2 {[%emt 0:00:00]} (40... a5 41. Ng2 Kd8) 41. Kd4 $2 {[%emt 0:00:57]} (41. Kb4 Ke7 42. Ne2) 41... Ke7 $2 {[%emt 0:00:00]} (41... a5 42. Kc5 Ke7) 42. Kc5 $2 {[%emt 0:00:09]} (42. b4 Ba4 43. Kc5) 42... Bb5 $2 {[%emt 0:00:00]} (42... a5 43. Ne2 a4) 43. b4 {[%emt 0:00:53]} Kd7 {[%emt 0:00:01]} 44. Kd4 $2 {[%emt 0:00:34]} (44. d4 {Kb6 is the strong threat.} Ke7 45. Kb6) 44... Ke7 $2 {[%emt 0:00:06]} (44... Ba4 45. Ne2 Bd1) 45. Nh3 {[%emt 0:00:31]} Kf7 {[%emt 0:01:06]} 46. Nf2 {[%emt 0:00:06] aiming for Kc5.} Kg7 {[%emt 0:00:50]} 47. Kc5 {[%emt 0:00:50] Threatens to win with d4.} Kf8 {[%emt 0:01:34]} 48. Kd6 {[%emt 0:00:06]} (48. d4 $142 Ke7 49. Ng4) 48... Kf7 {[%emt 0:00:05]} 49. d4 {[%emt 0:01:13]} Be2 {[%emt 0:00:11]} 50. Nh3 {[%emt 0:00:03] Nf4 would kill now.} Bg4 {[%emt 0:04:53]} 51. Nf4 {[%emt 0:00:04] White threatens Nd3 and mate.} Bf5 {[%emt 0:00:05] Inhibits Nd3.} 52. Ne2 {[%emt 0:00:05]} (52. Kc7 $142 Ke7 53. Kb7) 52... Kg7 {[%emt 0:01:31]} 53. Nc3 {[%emt 0:00:12] White mates.} h6 {[%emt 0:01:00]} 54. Na4 {[%emt 0:00:10]} hxg5 {[%emt 0:00:30]} 55. hxg5 {[%emt 0:00:02]} Kf7 {[%emt 0:00:07]} 56. Nc5 {[%emt 0:00:05]} Bg4 {[%emt 0:00:25]} 57. Nxa6 {[%emt 0:00:09]} Be2 {[%emt 0:00:23]} 58. Nc7 {[%emt 0:00:07] Weighted Error Value: White=0.65/Black=0.52} 1-0